[Event "*** Titled Tuesday Blitz"]
[Site "Chess.com"]
[Date "2020.05.19"]
[Round "9"]
[White "vpantev"]
[Black "Chichin_chao"]
[Result "1/2-1/2"]
[WhiteElo "2546"]
[BlackElo "2391"]
[TimeControl "180+1"]
[EndTime "13:48:12 PDT"]
[Termination "Game drawn by repetition"]

1. e4 {[%clk 0:02:55.1]} 1... c5 {[%clk 0:02:57.3]} 2. Nf3 {[%clk 0:02:54.1]}
2... e6 {[%clk 0:02:57.6]} 3. c3 {[%clk 0:02:53.5]} 3... Nf6 {[%clk 0:02:56.2]}
4. Bd3 {[%clk 0:02:50.1]} 4... d5 {[%clk 0:02:55.7]} 5. exd5 {[%clk 0:02:49.9]}
5... Nxd5 {[%clk 0:02:53.8]} 6. O-O {[%clk 0:02:48.2]} 6... Nc6 {[%clk
0:02:53.7]} 7. Bc4 {[%clk 0:02:43]} 7... Be7 {[%clk 0:02:45.2]} 8. d4 {[%clk
0:02:42.8]} 8... O-O {[%clk 0:02:43.6]} 9. dxc5 {[%clk 0:02:41.9]} 9... Bxc5
{[%clk 0:02:44]} 10. Bg5 {[%clk 0:02:38.9]} 10... Nf6 {[%clk 0:02:38.6]} 11.
Qxd8 {[%clk 0:02:37]} 11... Rxd8 {[%clk 0:02:39.5]} 12. Bxf6 {[%clk 0:02:35.8]}
12... gxf6 {[%clk 0:02:38.9]} 13. Nbd2 {[%clk 0:02:36.3]} 13... a6 {[%clk
0:02:38.1]} 14. a4 {[%clk 0:02:35.2]} 14... Ne5 {[%clk 0:02:34.2]} 15. Be2
{[%clk 0:02:30.9]} 15... Bd7 {[%clk 0:02:23.6]} 16. Nxe5 {[%clk 0:02:26.1]}
16... fxe5 {[%clk 0:02:23.8]} 17. Nb3 {[%clk 0:02:18.5]} 17... Be7 {[%clk
0:02:15]} 18. Bf3 {[%clk 0:02:17.6]} 18... Rab8 {[%clk 0:02:13.4]} 19. Rfd1
{[%clk 0:02:15.7]} 19... f5 {[%clk 0:01:58.1]} 20. Be2 {[%clk 0:02:09.7]} 20...
Be8 {[%clk 0:01:46.4]} 21. Na5 {[%clk 0:02:02.5]} 21... Rxd1+ {[%clk 0:01:41.8]}
22. Bxd1 {[%clk 0:02:01.3]} 22... b6 {[%clk 0:01:36.7]} 23. Nb3 {[%clk
0:01:56.5]} 23... Kg7 {[%clk 0:01:30.8]} 24. Be2 {[%clk 0:01:55.4]} 24... a5
{[%clk 0:01:24.5]} 25. Bb5 {[%clk 0:01:53.7]} 25... Bh5 {[%clk 0:01:22.2]} 26.
f3 {[%clk 0:01:51.4]} 26... Rd8 {[%clk 0:01:21.9]} 27. Kf2 {[%clk 0:01:48.7]}
27... Bh4+ {[%clk 0:01:21.3]} 28. Ke2 {[%clk 0:01:44.9]} 28... e4 {[%clk
0:01:21.3]} 29. Nd4 {[%clk 0:01:43.2]} 29... Kf6 {[%clk 0:01:18.3]} 30. h3
{[%clk 0:01:23.4]} 30... exf3+ {[%clk 0:01:16.9]} 31. Nxf3 {[%clk 0:01:18.9]}
31... Bg3 {[%clk 0:01:16]} 32. Rd1 {[%clk 0:01:15.9]} 32... Rxd1 {[%clk
0:01:15.7]} 33. Kxd1 {[%clk 0:01:15.8]} 33... e5 {[%clk 0:01:16.2]} 34. Be2
{[%clk 0:01:15.4]} 34... Be8 {[%clk 0:01:15]} 35. b3 {[%clk 0:01:14.3]} 35... e4
{[%clk 0:01:11.8]} 36. Nd2 {[%clk 0:01:12.6]} 36... Bf2 {[%clk 0:01:04.6]} 37.
g4 {[%clk 0:01:10]} 37... Bd7 {[%clk 0:00:56.4]} 38. Kc2 {[%clk 0:01:07.7]}
38... Ke5 {[%clk 0:00:54.5]} 39. Nc4+ {[%clk 0:01:06.6]} 39... Kf4 {[%clk
0:00:53.5]} 40. gxf5 {[%clk 0:01:04.6]} 40... Bxf5 {[%clk 0:00:53.5]} 41. b4
{[%clk 0:01:02]} 41... axb4 {[%clk 0:00:50.3]} 42. cxb4 {[%clk 0:01:02]} 42...
Bxh3 {[%clk 0:00:50.2]} 43. a5 {[%clk 0:00:57.1]} 43... bxa5 {[%clk 0:00:50.3]}
44. bxa5 {[%clk 0:00:56.8]} 44... Be6 {[%clk 0:00:45.5]} 45. Nd6 {[%clk
0:00:54]} 45... Ke5 {[%clk 0:00:42.3]} 46. Nb5 {[%clk 0:00:51.1]} 46... Bd7
{[%clk 0:00:37.9]} 47. a6 {[%clk 0:00:50.2]} 47... Bxb5 {[%clk 0:00:27.4]} 48.
Bxb5 {[%clk 0:00:49.7]} 48... h5 {[%clk 0:00:27.9]} 49. Kd1 {[%clk 0:00:49.9]}
49... h4 {[%clk 0:00:22.1]} 50. Ke2 {[%clk 0:00:45.1]} 50... Ba7 {[%clk
0:00:22.3]} 51. Bd7 {[%clk 0:00:43.6]} 51... Kf4 {[%clk 0:00:22.4]} 52. Kf1
{[%clk 0:00:39.7]} 52... Kf3 {[%clk 0:00:21.8]} 53. Bc8 {[%clk 0:00:31.2]} 53...
e3 {[%clk 0:00:19.8]} 54. Bb7+ {[%clk 0:00:31.1]} 54... Kg3 {[%clk 0:00:20.1]}
55. Bc6 {[%clk 0:00:29.9]} 55... h3 {[%clk 0:00:20.5]} 56. Bb7 {[%clk
0:00:29.7]} 56... Kh2 {[%clk 0:00:19.4]} 57. Bc6 {[%clk 0:00:29.1]} 57... Kg3
{[%clk 0:00:19.8]} 58. Bb7 {[%clk 0:00:29]} 58... Kf4 {[%clk 0:00:19.9]} 59. Ke2
{[%clk 0:00:27.7]} 59... Ke5 {[%clk 0:00:18.7]} 60. Bc8 {[%clk 0:00:24.2]} 60...
h2 {[%clk 0:00:18.4]} 61. Bb7 {[%clk 0:00:24]} 61... Kd4 {[%clk 0:00:18.4]} 62.
Bh1 {[%clk 0:00:23.6]} 62... Kc5 {[%clk 0:00:18.2]} 63. Bg2 {[%clk 0:00:23.5]}
63... Kb4 {[%clk 0:00:18.7]} 64. Bb7 {[%clk 0:00:23]} 64... Kb5 {[%clk 0:00:19]}
65. Kd3 {[%clk 0:00:21.1]} 65... Kb6 {[%clk 0:00:19]} 66. Ke2 {[%clk 0:00:20.9]}
66... Kc7 {[%clk 0:00:19.2]} 67. Kd3 {[%clk 0:00:20.9]} 67... Bb6 {[%clk
0:00:19.3]} 68. Ke2 {[%clk 0:00:20.8]} 68... Kd6 {[%clk 0:00:18.4]} 69. Kd3
{[%clk 0:00:20.4]} 69... Ke5 {[%clk 0:00:18.7]} 70. Ke2 {[%clk 0:00:20.4]} 70...
Kf4 {[%clk 0:00:19.1]} 71. Ba8 {[%clk 0:00:20.3]} 71... Ba7 {[%clk 0:00:19.4]}
72. Bb7 {[%clk 0:00:20.3]} 72... Kg3 {[%clk 0:00:19.8]} 73. Ba8 {[%clk
0:00:20.3]} 73... Kf4 {[%clk 0:00:20]} 74. Bb7 {[%clk 0:00:20.3]} 74... Ke5
{[%clk 0:00:14.5]} 75. Kd3 {[%clk 0:00:19.6]} 75... Kf4 {[%clk 0:00:14.3]} 76.
Ke2 {[%clk 0:00:19.4]} 1/2-1/2

[Event "*** Titled Tuesday Blitz"]
[Site "Chess.com"]
[Date "2020.05.19"]
[Round "9"]
[White "GMartin_Petrov"]
[Black "hellokostya"]
[Result "1-0"]
[WhiteElo "2599"]
[BlackElo "2406"]
[TimeControl "180+1"]
[EndTime "13:48:13 PDT"]
[Termination "GMartin_Petrov won by resignation"]

1. c4 {[%clk 0:03:00.9]} 1... g6 {[%clk 0:02:56.6]} 2. g3 {[%clk 0:02:58.7]}
2... Bg7 {[%clk 0:02:56.1]} 3. Bg2 {[%clk 0:02:59.3]} 3... c5 {[%clk 0:02:56.2]}
4. Nc3 {[%clk 0:02:59.4]} 4... Nc6 {[%clk 0:02:56.3]} 5. e4 {[%clk 0:02:58.3]}
5... e6 {[%clk 0:02:55.9]} 6. Nge2 {[%clk 0:02:57.6]} 6... Nge7 {[%clk
0:02:50.8]} 7. O-O {[%clk 0:02:56.7]} 7... d6 {[%clk 0:02:49.8]} 8. d3 {[%clk
0:02:57]} 8... O-O {[%clk 0:02:47.6]} 9. Rb1 {[%clk 0:02:55]} 9... b6 {[%clk
0:02:43]} 10. a3 {[%clk 0:02:53.6]} 10... Bb7 {[%clk 0:02:42.6]} 11. b4 {[%clk
0:02:52.9]} 11... Qd7 {[%clk 0:02:39.9]} 12. f4 {[%clk 0:02:27.7]} 12... Kh8
{[%clk 0:01:55.7]} 13. Kh1 {[%clk 0:02:25.4]} 13... Rac8 {[%clk 0:01:34.5]} 14.
b5 {[%clk 0:02:19.2]} 14... Nd4 {[%clk 0:01:33.9]} 15. Nxd4 {[%clk 0:02:18.8]}
15... Bxd4 {[%clk 0:01:31.7]} 16. Ne2 {[%clk 0:02:18.5]} 16... Bg7 {[%clk
0:01:26.7]} 17. Bb2 {[%clk 0:02:05.4]} 17... d5 {[%clk 0:01:22.2]} 18. Bxg7+
{[%clk 0:02:02.6]} 18... Kxg7 {[%clk 0:01:23.1]} 19. Qc2 {[%clk 0:01:36.3]}
19... Rcd8 {[%clk 0:01:17.4]} 20. Qc3+ {[%clk 0:01:32.3]} 20... d4 {[%clk
0:01:08.2]} 21. Qd2 {[%clk 0:01:31.5]} 21... f5 {[%clk 0:01:08.2]} 22. e5 {[%clk
0:01:23.3]} 22... Bxg2+ {[%clk 0:01:06.1]} 23. Kxg2 {[%clk 0:01:24.2]} 23...
Qb7+ {[%clk 0:01:06.2]} 24. Kf2 {[%clk 0:01:23.3]} 24... a6 {[%clk 0:01:05.5]}
25. bxa6 {[%clk 0:01:19.9]} 25... Qxa6 {[%clk 0:01:03.5]} 26. Rb3 {[%clk
0:01:19.8]} 26... Rb8 {[%clk 0:00:51.8]} 27. Rfb1 {[%clk 0:01:18.1]} 27... h5
{[%clk 0:00:49.8]} 28. Ng1 {[%clk 0:01:09.5]} 28... Ng8 {[%clk 0:00:29.8]} 29.
Nf3 {[%clk 0:01:07]} 29... Nh6 {[%clk 0:00:30]} 30. h3 {[%clk 0:01:05.5]} 30...
Nf7 {[%clk 0:00:30.3]} 31. Qb2 {[%clk 0:00:59.9]} 31... Rfe8 {[%clk 0:00:28.1]}
32. Ke2 {[%clk 0:00:49.4]} 32... Re7 {[%clk 0:00:27.9]} 33. Rxb6 {[%clk
0:00:32.5]} 33... Rxb6 {[%clk 0:00:26.9]} 34. Qxb6 {[%clk 0:00:33.4]} 34... Qxa3
{[%clk 0:00:26.8]} 35. Rb3 {[%clk 0:00:33.3]} 35... Qa2+ {[%clk 0:00:26.4]} 36.
Rb2 {[%clk 0:00:33.2]} 36... Qa3 {[%clk 0:00:25.7]} 37. Qb3 {[%clk 0:00:32.5]}
37... Qa5 {[%clk 0:00:24.8]} 38. Qb5 {[%clk 0:00:30.6]} 38... Qc3 {[%clk
0:00:23.3]} 39. Qb3 {[%clk 0:00:27.8]} 39... Qc1 {[%clk 0:00:23.4]} 40. Nd2
{[%clk 0:00:24]} 40... Qh1 {[%clk 0:00:22.4]} 41. Qb6 {[%clk 0:00:22.3]} 41...
Qxh3 {[%clk 0:00:20]} 42. Qxc5 {[%clk 0:00:21.2]} 42... Rd7 {[%clk 0:00:16.9]}
43. Qc6 {[%clk 0:00:20.4]} 43... Ra7 {[%clk 0:00:12.3]} 44. Qf3 {[%clk
0:00:18.3]} 44... Qh2+ {[%clk 0:00:11.3]} 45. Qf2 {[%clk 0:00:18.4]} 45... Qh1
{[%clk 0:00:11.7]} 46. Qf1 {[%clk 0:00:14.8]} 46... Qc6 {[%clk 0:00:10.6]} 47.
Nf3 {[%clk 0:00:13.3]} 47... Ra3 {[%clk 0:00:10.1]} 48. Qb1 {[%clk 0:00:11.2]}
48... Qa4 {[%clk 0:00:06.5]} 49. Qc2 {[%clk 0:00:09.2]} 49... Qa7 {[%clk
0:00:05.2]} 50. Kf2 {[%clk 0:00:07.6]} 50... Ra1 {[%clk 0:00:04.7]} 51. Kg2
{[%clk 0:00:07.2]} 51... Qa5 {[%clk 0:00:04.5]} 52. Kh3 {[%clk 0:00:06.2]} 52...
Nh6 {[%clk 0:00:03.8]} 53. Rb7+ {[%clk 0:00:04.5]} 53... Kh8 {[%clk 0:00:03.4]}
54. Qb2 {[%clk 0:00:03.8]} 54... Qa3 {[%clk 0:00:01]} 55. Rb8+ {[%clk
0:00:02.9]} 55... Kg7 {[%clk 0:00:01.9]} 56. Qxa3 {[%clk 0:00:02.4]} 56... Rxa3
{[%clk 0:00:02]} 57. Nxd4 {[%clk 0:00:03.3]} 57... Nf7 {[%clk 0:00:02.4]} 58.
Nxe6+ {[%clk 0:00:03.2]} 58... Kh6 {[%clk 0:00:02.9]} 59. Rb7 {[%clk 0:00:03.2]}
59... g5 {[%clk 0:00:01.8]} 60. Rxf7 {[%clk 0:00:02.2]} 60... Ra2 {[%clk
0:00:02]} 61. Rf6+ {[%clk 0:00:02]} 61... Kh7 {[%clk 0:00:02.1]} 62. Nxg5+
{[%clk 0:00:02.9]} 62... Kg8 {[%clk 0:00:02.7]} 63. Rxf5 {[%clk 0:00:03.4]}
63... h4 {[%clk 0:00:03.1]} 64. Rf6 {[%clk 0:00:04.2]} 64... Kg7 {[%clk
0:00:03.4]} 65. gxh4 {[%clk 0:00:04.2]} 65... Kg8 {[%clk 0:00:03.7]} 66. Kg4
{[%clk 0:00:05.1]} 66... Kh8 {[%clk 0:00:04.6]} 67. Kf5 {[%clk 0:00:05.7]} 67...
Kg7 {[%clk 0:00:05.5]} 68. e6 {[%clk 0:00:06.3]} 68... Kg8 {[%clk 0:00:06.2]}
69. Rf7 {[%clk 0:00:06.8]} 69... Ra5+ {[%clk 0:00:06.5]} 70. Kf6 {[%clk
0:00:07.3]} 70... Ra8 {[%clk 0:00:07.3]} 71. f5 {[%clk 0:00:07.7]} 71... Rb8
{[%clk 0:00:07.6]} 72. h5 {[%clk 0:00:07.9]} 72... Kh8 {[%clk 0:00:08]} 73. h6
{[%clk 0:00:08.3]} 73... Rg8 {[%clk 0:00:08.6]} 74. Rg7 {[%clk 0:00:08.2]} 74...
Rf8+ {[%clk 0:00:08.6]} 75. Nf7+ {[%clk 0:00:08.5]} 75... Rxf7+ {[%clk
0:00:08.9]} 76. Rxf7 {[%clk 0:00:09.4]} 1-0

[Event "*** Titled Tuesday Blitz"]
[Site "Chess.com"]
[Date "2020.05.19"]
[Round "9"]
[White "parmupill123"]
[Black "manitodeplomo"]
[Result "1/2-1/2"]
[WhiteElo "2414"]
[BlackElo "2585"]
[TimeControl "180+1"]
[EndTime "13:48:16 PDT"]
[Termination "Game drawn - insufficient material"]

1. e4 {[%clk 0:02:52.5]} 1... c5 {[%clk 0:02:59.3]} 2. Nc3 {[%clk 0:02:50.2]}
2... Nc6 {[%clk 0:02:57.2]} 3. g3 {[%clk 0:02:50.4]} 3... g6 {[%clk 0:02:57.2]}
4. Bg2 {[%clk 0:02:47.5]} 4... Bg7 {[%clk 0:02:57.3]} 5. d3 {[%clk 0:02:47.8]}
5... Rb8 {[%clk 0:02:56.4]} 6. Be3 {[%clk 0:02:45.6]} 6... b5 {[%clk 0:02:56]}
7. Qd2 {[%clk 0:02:38.3]} 7... b4 {[%clk 0:02:55.6]} 8. Nd1 {[%clk 0:02:38.5]}
8... d6 {[%clk 0:02:53.9]} 9. Ne2 {[%clk 0:02:36.6]} 9... Bd7 {[%clk 0:02:51.9]}
10. O-O {[%clk 0:02:35.5]} 10... h5 {[%clk 0:02:47.8]} 11. d4 {[%clk 0:02:26.6]}
11... cxd4 {[%clk 0:02:39.9]} 12. Nxd4 {[%clk 0:02:27.5]} 12... Ne5 {[%clk
0:02:35.2]} 13. a3 {[%clk 0:01:37.8]} 13... bxa3 {[%clk 0:02:26.9]} 14. bxa3
{[%clk 0:01:33.6]} 14... h4 {[%clk 0:02:23.8]} 15. c3 {[%clk 0:01:26.9]} 15...
hxg3 {[%clk 0:02:22.3]} 16. hxg3 {[%clk 0:01:26.2]} 16... Nf6 {[%clk 0:02:10.5]}
17. Ra2 {[%clk 0:01:10.6]} 17... Qc8 {[%clk 0:02:01.5]} 18. f4 {[%clk
0:01:06.3]} 18... Nc4 {[%clk 0:01:57.2]} 19. Qe1 {[%clk 0:01:02.5]} 19... Bh3
{[%clk 0:01:42.7]} 20. Nf2 {[%clk 0:00:58.1]} 20... Bxg2 {[%clk 0:01:41.4]} 21.
Kxg2 {[%clk 0:00:59]} 21... Ng4 {[%clk 0:01:26]} 22. Nxg4 {[%clk 0:00:52.5]}
22... Qxg4 {[%clk 0:01:26.9]} 23. Kg1 {[%clk 0:00:27.1]} 23... Qh3 {[%clk
0:01:16]} 24. Nf3 {[%clk 0:00:18]} 24... Rb3 {[%clk 0:00:42.8]} 25. Rh2 {[%clk
0:00:15.8]} 25... Qg4 {[%clk 0:00:33.3]} 26. Bd4 {[%clk 0:00:15.7]} 26... Bxd4+
{[%clk 0:00:19]} 27. Nxd4 {[%clk 0:00:16.2]} 27... Rxh2 {[%clk 0:00:18.1]} 28.
Kxh2 {[%clk 0:00:17.1]} 28... Rb2+ {[%clk 0:00:18]} 29. Rf2 {[%clk 0:00:15.8]}
29... Qh5+ {[%clk 0:00:16.2]} 30. Kg2 {[%clk 0:00:15.4]} 30... Rxf2+ {[%clk
0:00:13.9]} 31. Qxf2 {[%clk 0:00:14.8]} 31... Qc5 {[%clk 0:00:14.2]} 32. a4
{[%clk 0:00:12.4]} 32... a5 {[%clk 0:00:12.4]} 33. Qa2 {[%clk 0:00:12]} 33...
Ne3+ {[%clk 0:00:10.5]} 34. Kf2 {[%clk 0:00:12]} 34... Nd1+ {[%clk 0:00:10.5]}
35. Kg2 {[%clk 0:00:11.5]} 35... Nxc3 {[%clk 0:00:11.4]} 36. Qd2 {[%clk
0:00:10.5]} 36... Nxe4 {[%clk 0:00:11]} 37. Qe3 {[%clk 0:00:10.9]} 37... Qd5
{[%clk 0:00:10.5]} 38. Kh2 {[%clk 0:00:10]} 38... f5 {[%clk 0:00:10.4]} 39. Nf3
{[%clk 0:00:09.4]} 39... Nf6 {[%clk 0:00:09.8]} 40. Kh3 {[%clk 0:00:09.6]} 40...
Kf7 {[%clk 0:00:09]} 41. Ng5+ {[%clk 0:00:09.3]} 41... Kg8 {[%clk 0:00:09.2]}
42. Qe2 {[%clk 0:00:09.7]} 42... Qh1+ {[%clk 0:00:08.9]} 43. Qh2 {[%clk
0:00:08.9]} 43... Qxh2+ {[%clk 0:00:09.2]} 44. Kxh2 {[%clk 0:00:09.8]} 44... Nd5
{[%clk 0:00:09.3]} 45. Ne6 {[%clk 0:00:06.1]} 45... Nc3 {[%clk 0:00:09]} 46. Nd4
{[%clk 0:00:05.7]} 46... Nxa4 {[%clk 0:00:07.5]} 47. Nc6 {[%clk 0:00:05.8]}
47... Kf7 {[%clk 0:00:07.5]} 48. Nxa5 {[%clk 0:00:05.9]} 48... Nc5 {[%clk
0:00:08]} 49. Kg2 {[%clk 0:00:05.7]} 49... Ne4 {[%clk 0:00:08.3]} 50. Kf3 {[%clk
0:00:05.8]} 50... Nf6 {[%clk 0:00:09.2]} 51. Nb3 {[%clk 0:00:05.5]} 51... e5
{[%clk 0:00:08.3]} 52. Nd2 {[%clk 0:00:04.4]} 52... Nd5 {[%clk 0:00:08.1]} 53.
Nc4 {[%clk 0:00:04]} 53... Ke6 {[%clk 0:00:08.2]} 54. fxe5 {[%clk 0:00:03.8]}
54... dxe5 {[%clk 0:00:09.1]} 55. Nd2 {[%clk 0:00:02.8]} 55... e4+ {[%clk
0:00:08.6]} 56. Ke2 {[%clk 0:00:03.3]} 56... Ke5 {[%clk 0:00:08.5]} 57. Nc4+
{[%clk 0:00:03.6]} 57... Ke6 {[%clk 0:00:08.5]} 58. Nd2 {[%clk 0:00:03.8]} 58...
Nf6 {[%clk 0:00:07.7]} 59. Nc4 {[%clk 0:00:03.6]} 59... g5 {[%clk 0:00:07.7]}
60. Ne3 {[%clk 0:00:03.6]} 60... Nd5 {[%clk 0:00:07.4]} 61. Nc4 {[%clk
0:00:03.4]} 61... f4 {[%clk 0:00:07.5]} 62. Nd2 {[%clk 0:00:03.2]} 62... Ke5
{[%clk 0:00:07.3]} 63. gxf4+ {[%clk 0:00:03.2]} 63... gxf4 {[%clk 0:00:07.1]}
64. Nc4+ {[%clk 0:00:04.1]} 64... Kd4 {[%clk 0:00:07.2]} 65. Nd6 {[%clk
0:00:04.6]} 65... f3+ {[%clk 0:00:06.6]} 66. Kf2 {[%clk 0:00:04.8]} 66... Kd3
{[%clk 0:00:07.1]} 67. Nf5 {[%clk 0:00:04.7]} 67... Nc3 {[%clk 0:00:05.7]} 68.
Ng3 {[%clk 0:00:04.1]} 68... Kd2 {[%clk 0:00:04.8]} 69. Nxe4+ {[%clk 0:00:02.6]}
69... Nxe4+ {[%clk 0:00:05.7]} 70. Kxf3 {[%clk 0:00:03]} 1/2-1/2

[Event "*** Titled Tuesday Blitz"]
[Site "Chess.com"]
[Date "2020.05.19"]
[Round "9"]
[White "noblerone"]
[Black "chenxiaoyuer"]
[Result "0-1"]
[WhiteElo "2424"]
[BlackElo "2302"]
[TimeControl "180+1"]
[EndTime "13:48:17 PDT"]
[Termination "chenxiaoyuer won by checkmate"]

1. d4 {[%clk 0:03:00.9]} 1... Nf6 {[%clk 0:03:00.1]} 2. Nf3 {[%clk 0:03:00.6]}
2... g6 {[%clk 0:03:00.3]} 3. Bg5 {[%clk 0:03:00.5]} 3... Bg7 {[%clk 0:03:00.4]}
4. Nbd2 {[%clk 0:03:01]} 4... d5 {[%clk 0:02:58.8]} 5. e3 {[%clk 0:03:00.9]}
5... O-O {[%clk 0:02:58.6]} 6. Bd3 {[%clk 0:03:00.3]} 6... c5 {[%clk 0:02:58.5]}
7. c3 {[%clk 0:03:00.1]} 7... Nfd7 {[%clk 0:02:58.4]} 8. O-O {[%clk 0:02:58.5]}
8... Nc6 {[%clk 0:02:58.4]} 9. Bh4 {[%clk 0:02:51.9]} 9... Qb6 {[%clk
0:02:46.9]} 10. Qb3 {[%clk 0:02:43.3]} 10... c4 {[%clk 0:02:19.3]} 11. Qxb6
{[%clk 0:02:41]} 11... axb6 {[%clk 0:02:20.2]} 12. Bc2 {[%clk 0:02:39.8]} 12...
b5 {[%clk 0:02:18.8]} 13. a3 {[%clk 0:02:39.5]} 13... Nb6 {[%clk 0:02:11.5]} 14.
e4 {[%clk 0:02:37.8]} 14... dxe4 {[%clk 0:02:03.4]} 15. Bxe4 {[%clk 0:02:32.5]}
15... Bf5 {[%clk 0:01:58]} 16. Rfe1 {[%clk 0:02:17.1]} 16... e6 {[%clk
0:01:54.8]} 17. h3 {[%clk 0:02:09.7]} 17... Nd5 {[%clk 0:01:41.9]} 18. Bg3
{[%clk 0:01:59]} 18... Nf6 {[%clk 0:01:22]} 19. Bxf5 {[%clk 0:01:39.2]} 19...
gxf5 {[%clk 0:01:18.8]} 20. Ne5 {[%clk 0:01:08.9]} 20... Nd5 {[%clk 0:01:14.1]}
21. Ndf3 {[%clk 0:01:01.4]} 21... Rfe8 {[%clk 0:01:04.3]} 22. Nxc6 {[%clk
0:00:56.6]} 22... bxc6 {[%clk 0:01:04]} 23. Bd6 {[%clk 0:00:54.5]} 23... f6
{[%clk 0:01:01]} 24. Re2 {[%clk 0:00:52]} 24... Kf7 {[%clk 0:01:00.3]} 25. Rae1
{[%clk 0:00:51.6]} 25... Rad8 {[%clk 0:00:55.5]} 26. Bh2 {[%clk 0:00:47.3]}
26... Bh6 {[%clk 0:00:51]} 27. Nh4 {[%clk 0:00:32.5]} 27... Bf4 {[%clk
0:00:47.2]} 28. g3 {[%clk 0:00:29.4]} 28... Bd6 {[%clk 0:00:44.8]} 29. f4 {[%clk
0:00:26.7]} 29... Re7 {[%clk 0:00:39.1]} 30. Kf1 {[%clk 0:00:23.8]} 30... Rg8
{[%clk 0:00:35.7]} 31. Nf3 {[%clk 0:00:20.7]} 31... h5 {[%clk 0:00:32.6]} 32.
Nh4 {[%clk 0:00:20.5]} 32... Bc7 {[%clk 0:00:28.8]} 33. Kf2 {[%clk 0:00:21]}
33... Bd6 {[%clk 0:00:28.4]} 34. Ng2 {[%clk 0:00:20.1]} 34... Bc7 {[%clk
0:00:27.2]} 35. Ne3 {[%clk 0:00:20.1]} 35... Bd6 {[%clk 0:00:22.9]} 36. Nc2
{[%clk 0:00:20.1]} 36... h4 {[%clk 0:00:20.4]} 37. gxh4 {[%clk 0:00:14.1]} 37...
Bxf4 {[%clk 0:00:19.9]} 38. Kf3 {[%clk 0:00:11.3]} 38... Bxh2 {[%clk 0:00:15.4]}
39. Rxh2 {[%clk 0:00:12.2]} 39... e5 {[%clk 0:00:15.6]} 40. dxe5 {[%clk
0:00:09]} 40... fxe5 {[%clk 0:00:15.7]} 41. Nb4 {[%clk 0:00:07.3]} 41... Nxb4
{[%clk 0:00:14.8]} 42. axb4 {[%clk 0:00:08.2]} 42... Kf6 {[%clk 0:00:13.8]} 43.
h5 {[%clk 0:00:05.3]} 43... Rd7 {[%clk 0:00:13.1]} 44. Rhe2 {[%clk 0:00:05.4]}
44... e4+ {[%clk 0:00:13.1]} 45. Kf2 {[%clk 0:00:04.9]} 45... Rd3 {[%clk
0:00:12.7]} 46. Rh1 {[%clk 0:00:04]} 46... Rf3+ {[%clk 0:00:11.5]} 47. Ke1
{[%clk 0:00:04.3]} 47... Rd3 {[%clk 0:00:10.6]} 48. Rf1 {[%clk 0:00:04.3]} 48...
Ke5 {[%clk 0:00:07.3]} 49. Ref2 {[%clk 0:00:04.1]} 49... Rf8 {[%clk 0:00:07.2]}
50. h6 {[%clk 0:00:04.1]} 50... Rxh3 {[%clk 0:00:07.1]} 51. Rg1 {[%clk
0:00:03.3]} 51... Rxh6 {[%clk 0:00:06.7]} 52. Rg7 {[%clk 0:00:04]} 52... Rd6
{[%clk 0:00:06.3]} 53. Re7+ {[%clk 0:00:03.8]} 53... Re6 {[%clk 0:00:06.5]} 54.
Rc7 {[%clk 0:00:04]} 54... Rg8 {[%clk 0:00:06.3]} 55. Ke2 {[%clk 0:00:03.8]}
55... Rg3 {[%clk 0:00:06.1]} 56. Rh7 {[%clk 0:00:04.3]} 56... Rd3 {[%clk
0:00:04.9]} 57. Rh5 {[%clk 0:00:04.7]} 57... Rf6 {[%clk 0:00:04.5]} 58. Rh4
{[%clk 0:00:04.6]} 58... Rd5 {[%clk 0:00:04.1]} 59. Rh5 {[%clk 0:00:05]} 59...
Rdd6 {[%clk 0:00:04.1]} 60. Ke3 {[%clk 0:00:05.5]} 60... Rd7 {[%clk 0:00:03.1]}
61. Ke2 {[%clk 0:00:04.2]} 61... Rg7 {[%clk 0:00:03.2]} 62. Rh4 {[%clk
0:00:04.1]} 62... Rg3 {[%clk 0:00:02.9]} 63. Rh5 {[%clk 0:00:04.5]} 63... Ke6
{[%clk 0:00:02.8]} 64. Rh8 {[%clk 0:00:04.2]} 64... f4 {[%clk 0:00:02.3]} 65.
Re8+ {[%clk 0:00:04.7]} 65... Kf5 {[%clk 0:00:02.3]} 66. Rd8 {[%clk 0:00:03.9]}
66... Re3+ {[%clk 0:00:02.7]} 67. Kd2 {[%clk 0:00:04.1]} 67... Rd3+ {[%clk
0:00:03.1]} 68. Kc2 {[%clk 0:00:03.7]} 68... Rxd8 {[%clk 0:00:02.9]} 69. Rh2
{[%clk 0:00:03.2]} 69... Rg6 {[%clk 0:00:03.2]} 70. Rh5+ {[%clk 0:00:03.1]}
70... Rg5 {[%clk 0:00:03.6]} 71. Rh2 {[%clk 0:00:03.8]} 71... Rdg8 {[%clk
0:00:03.5]} 72. Kb1 {[%clk 0:00:04]} 72... Rg1+ {[%clk 0:00:03.7]} 73. Ka2
{[%clk 0:00:04.4]} 73... Ra8# {[%clk 0:00:03.7]} 0-1